fUST/lending_fUST_20250806
["ID","MTS","AMOUNT","RATE_DAILY","PERIOD"]
[377542188,1754436645328,-460.0,0.00027671,2]
[377542189,1754436645337,-460.0,0.00027671,2]
[377542190,1754436645347,-304.206725,0.00027671,7]
[377542191,1754436645356,-404.465137,0.00027671,7]
[377542192,1754436645364,-404.465137,0.00027671,7]
[377542193,1754436645374,-304.206725,0.00027671,7]
[377542194,1754436645383,-460.0,0.00027671,2]
[377542195,1754436645393,-181.88151,0.00027671,7]
[377542196,1754436645403,-181.88151,0.00027671,7]
[377542197,1754436645413,-460.0,0.00027671,2]
[377542198,1754436645422,-181.88151,0.00027671,7]
[377542199,1754436645431,-181.88151,0.00027671,7]
[377542200,1754436645440,-1248.44,0.00027671,2]
[377542201,1754436645451,-1892.67,0.00027671,2]
[377542202,1754436645461,-460.0,0.00027671,2]
[377542203,1754436645471,-557.75,0.00027671,2]
[377542204,1754436645481,-384.636994,0.00027671,7]
[377542205,1754436645490,-384.636994,0.00027671,7]
[377542206,1754436645499,-587.05,0.00027671,2]
[377542207,1754436645509,-185.29827,0.00027671,7]
[377542208,1754436645518,-384.636994,0.00027671,7]
[377542209,1754436645527,-185.29827,0.00027671,7]
[377542210,1754436645537,-384.636994,0.00027671,7]
[377542211,1754436645549,-185.29827,0.00027671,7]
[377542212,1754436645559,-185.29827,0.00027671,7]
[377542213,1754436645568,-460.0,0.00027671,2]
[377542214,1754436645577,-460.0,0.00027671,2]
[377542215,1754436645587,-151.0,0.00027671,7]
[377542216,1754436645597,-257.646005,0.00027671,7]
[377542217,1754436645606,-460.0,0.00027671,2]
[377542218,1754436645616,-151.0,0.00027671,7]
[377542219,1754436645626,-151.0,0.00027671,7]
[377542220,1754436645636,-460.0,0.00027671,2]
[377542221,1754436645646,-466.61584917,0.00027671,2]
[377542222,1754436645656,-460.0,0.00027671,2]
[377542223,1754436645666,-460.0,0.00027671,2]
[377542224,1754436645676,-522.69,0.00027671,2]
[377542225,1754436645685,-628.39,0.00027671,2]
[377542226,1754436645695,-460.0,0.00027671,2]
[377542227,1754436645705,-748.86,0.00027671,2]
[377542228,1754436645850,-749.87,0.00027671,2]
[377542229,1754436645861,-152.916843,0.00027671,7]
[377542230,1754436645870,-1365.52,0.00027671,2]
[377542231,1754436645880,-497.333361,0.00027671,7]
[377542232,1754436645889,-497.333361,0.00027671,7]
[377542233,1754436645899,-460.0,0.00027671,2]
[377542234,1754436645909,-4732.54,0.00027671,2]
[377542235,1754436645919,-460.0,0.00027671,2]
[377542236,1754436645929,-460.0,0.00027671,2]
[377542237,1754436645938,-470.31131267,0.00027671,2]
[377542238,1754436645948,-497.333361,0.00027671,7]
[377542239,1754436645957,-497.333361,0.00027671,7]
[377542240,1754436645967,-1141.38,0.00027671,2]
[377542241,1754436645977,-460.0,0.00027671,2]
[377542242,1754436645987,-1349.69,0.00027671,2]
[377542243,1754436645996,-1420.76,0.00027671,2]
[377542244,1754436646005,-151.0,0.00027671,7]
[377542245,1754436646015,-151.0,0.00027671,7]
[377542246,1754436646025,-460.0,0.00027671,2]
[377542247,1754436646034,-1273.77,0.00027671,2]
[377542248,1754436646043,-160.0,0.00027671,7]
[377542249,1754436646053,-460.0,0.00027671,2]
[377542251,1754436646063,-460.0,0.00027671,2]
[377542253,1754436646072,-3973.05,0.00027671,2]
[377542254,1754436646081,-466.51735706,0.00027671,2]
[377542255,1754436646091,-419.700864,0.00027671,7]
[377542256,1754436646100,-419.700864,0.00027671,7]
[377542257,1754436646110,-1013.54,0.00027671,2]
[377542258,1754436646119,-469.60345435,0.00027671,2]
[377542259,1754436646129,-419.700864,0.00027671,7]
[377542260,1754436646139,-419.700864,0.00027671,7]
[377542261,1754436646149,-460.0,0.00027671,2]
[377542262,1754436646158,-842.25606042,0.00027671,7]
[377542263,1754436646168,-460.0,0.00027671,2]
[377542264,1754436646178,-461.15695721,0.00027671,7]
[377542265,1754436646187,-460.0,0.00027671,2]
[377542266,1754436646196,-460.0,0.00027671,2]
[377542267,1754436646206,-151.0,0.00027671,7]
[377542268,1754436646216,-151.0,0.00027671,7]
[377542269,1754436646226,-460.0,0.00027671,2]
[377542270,1754436646236,-460.0,0.00027671,2]
[377542271,1754436646246,-460.0,0.00027671,2]
[377542272,1754436646256,-2267.96,0.00027671,2]
[377542273,1754436646266,-1391.07,0.00027671,2]
[377542274,1754436646276,-1420.39,0.00027671,2]
[377542275,1754436646286,-151.0,0.00027671,7]
[377542276,1754436646295,-151.0,0.00027671,7]
[377542277,1754436646304,-460.0,0.00027671,2]
[377542278,1754436646313,-460.0,0.00027671,2]
[377542279,1754436646323,-460.0,0.00027671,2]
[377542280,1754436646331,-151.0,0.00027671,7]
[377542281,1754436646342,-460.0,0.00027671,2]
[377542282,1754436646351,-460.0,0.00027671,2]
[377542283,1754436646360,-460.0,0.00027671,2]
[377542284,1754436646370,-935.21,0.00027671,2]
[377542285,1754436646379,-151.0,0.00027671,7]
[377542286,1754436646388,-151.0,0.00027671,7]
[377542287,1754436646398,-460.0,0.00027671,2]
[377542288,1754436646407,-231.72586818,0.00027671,7]
[377542289,1754436646417,-154.817736,0.00027671,7]
[377542290,1754436646426,-460.0,0.00027671,2]
[377542291,1754436646436,-460.0,0.00027671,2]
[377542292,1754436646445,-547.14,0.00027671,2]
[377542293,1754436646455,-235.82297017,0.00027673,5]
[377542294,1754436646464,-500.0,0.00027673,5]
[377542295,1754436646474,-500.0,0.00027673,2]
[377542296,1754436646484,-500.0,0.00027673,5]
[377542297,1754436646493,-500.0,0.00027673,5]
[377542298,1754436646502,-500.0,0.00027673,5]
[377542299,1754436646512,-500.0,0.00027673,5]
[377542300,1754436646521,-153.0185066,0.00027673,5]
[377542301,1754436646531,-393.43809798,0.00027673,5]
[377542302,1754436646541,-500.0,0.00027673,5]
[377542303,1754436646554,-501.66944274,0.00027673,5]
[377542304,1754436646563,-500.0,0.00027673,5]
[377542305,1754436646573,-150.0,0.00027673,5]
[377542306,1754436646582,-500.0,0.00027673,2]
[377542307,1754436646593,-500.0,0.00027673,5]
[377542308,1754436646602,-500.0,0.00027673,5]
[377542309,1754436646612,-151.0,0.00027673,7]
[377542310,1754436646622,-151.0,0.00027673,7]
[377542311,1754436646631,-151.0,0.00027673,7]
[377542312,1754436646640,-151.0,0.00027673,7]
[377542313,1754436646650,-282.844152,0.00027673,7]
[377542314,1754436646659,-282.844152,0.00027673,7]
[377542315,1754436646668,-433.916028,0.00027673,7]
[377542316,1754436646678,-433.916028,0.00027673,7]
[377542317,1754436646688,-151.0,0.00027673,7]
[377542318,1754436646697,-151.0,0.00027673,7]
[377542319,1754436646707,-151.0,0.00027673,7]
[377542320,1754436646716,-160.0,0.000277,2]
[377542321,1754436646725,-13063.45473506,0.000277,8]
[377542322,1754436646735,-334.96678024,0.0002771,2]
[377542323,1754436646744,-529.66124519,0.00027766,2]
[377542324,1754436646754,-153.628359,0.000278,7]
[377542325,1754436646764,-2183.31810187,0.00027902,2]
[377542326,1754436646773,-151.0,0.00027902,2]
[377542327,1754436646783,-22188.54324152,0.00027902,2]
[377542328,1754436646792,-151.0,0.00027902,2]
[377542329,1754436646802,-151.0,0.00027902,2]
[377542330,1754436646812,-151.0,0.00027902,2]
[377542331,1754436646821,-151.0,0.00027902,2]
[377542332,1754436646831,-151.0,0.00027902,2]
[377542333,1754436646841,-151.0,0.00027902,2]
[377542334,1754436646851,-151.0,0.00027902,2]
[377542335,1754436646860,-151.0,0.00027902,2]
[377542336,1754436646870,-151.0,0.00027902,2]
[377542337,1754436646879,-151.0,0.00027902,2]
[377542338,1754436646889,-151.0,0.00027902,2]
[377542339,1754436646899,-151.0,0.00027902,2]
[377542340,1754436646908,-151.0,0.00027902,2]
[377542341,1754436646918,-151.0,0.00027902,2]
[377542342,1754436646927,-151.0,0.00027902,2]
[377542343,1754436646937,-151.0,0.00027902,2]
[377542344,1754436646946,-151.0,0.00027902,2]
[377542345,1754436646955,-151.0,0.00027902,2]
[377542346,1754436646965,-151.0,0.00027902,2]
[377542347,1754436646974,-151.0,0.00027902,7]
[377542348,1754436646983,-173.587474,0.00027902,7]
[377542349,1754436646995,-173.587474,0.00027902,7]
[377542350,1754436647004,-361.300716,0.00027902,7]
[377542351,1754436647015,-361.300716,0.00027902,7]
[377542352,1754436647024,-151.0,0.00027902,7]
[377542353,1754436647034,-151.0,0.00027902,7]
[377542354,1754436647043,-151.0,0.00027902,7]
[377542355,1754436647053,-151.0,0.00027902,7]
[377542356,1754436647063,-151.0,0.00027945,7]
[377542357,1754436647072,-151.0,0.00027945,7]
[377542358,1754436647082,-151.0,0.00027945,7]
[377542359,1754436647091,-207.146422,0.00027945,7]
[377542360,1754436647100,-151.0,0.00027945,7]
[377542361,1754436647110,-460.0,0.00027945,2]
[377542362,1754436647119,-460.0,0.00027945,2]
[377542363,1754436647129,-538.16046026,0.00027945,2]
[377542364,1754436647138,-460.0,0.00027945,2]
[377542365,1754436647148,-460.0,0.00027945,2]
[377542366,1754436647157,-460.0,0.00027945,2]
[377542367,1754436647167,-151.0,0.00027945,7]
[377542368,1754436647176,-151.0,0.00027945,7]
[377542369,1754436647185,-500.0,0.00027945,2]
[377542370,1754436647195,-460.0,0.00027945,2]
[377542371,1754436647204,-151.0,0.00027945,7]
[377542372,1754436647213,-151.0,0.00027945,7]
[377542373,1754436647222,-460.0,0.00027945,2]
[377542374,1754436647233,-151.0,0.00027945,7]
[377542375,1754436647242,-460.0,0.00027945,2]
[377542376,1754436647252,-460.0,0.00027945,2]
[377542377,1754436647261,-151.0,0.00027945,7]
[377542378,1754436647271,-460.0,0.00027945,2]
[377542379,1754436647280,-460.0,0.00027945,2]
[377542380,1754436647290,-460.0,0.00027945,2]
[377542381,1754436647299,-460.0,0.00027945,2]
[377542382,1754436647308,-460.0,0.00027945,2]
[377542383,1754436647317,-474.41,0.00027945,2]
[377542384,1754436647327,-460.0,0.00027945,2]
[377542385,1754436647336,-460.0,0.00027945,2]
[377542386,1754436647345,-460.0,0.00027945,2]
[377542387,1754436647354,-460.0,0.00027945,2]
[377542388,1754436647363,-460.0,0.00027945,2]
[377542389,1754436647373,-460.0,0.00027945,2]
[377542390,1754436647382,-460.0,0.00027945,2]
[377542391,1754436647391,-919.73,0.00027945,2]
[377542392,1754436647400,-151.0,0.00027945,7]
[377542393,1754436647410,-460.0,0.00027945,2]
[377542394,1754436647420,-282.844152,0.00027945,7]
[377542395,1754436647429,-728.33,0.00027945,2]
[377542396,1754436647439,-537.02337628,0.00027945,2]
[377542397,1754436647448,-282.844152,0.00027945,7]
[377542398,1754436647457,-253.273501,0.00027945,7]
[377542399,1754436647467,-465.29334933,0.00027945,2]
[377542400,1754436647476,-460.0,0.00027945,2]
[377542401,1754436647486,-500.0,0.00027945,2]
[377542403,1754436647496,-156.51082,0.00027945,7]
[377542404,1754436647506,-460.0,0.00027945,2]
[377542405,1754436647515,-460.0,0.00027945,2]
[377542406,1754436647525,-460.0,0.00027945,2]
[377542407,1754436647535,-156.51082,0.00027945,7]
[377542408,1754436647547,-460.0,0.00027945,2]
[377542409,1754436647557,-151.0,0.00027945,7]
[377542410,1754436647567,-151.000002,0.00027945,7]
[377542411,1754436647577,-735.19,0.00027945,2]
[377542412,1754436647587,-460.0,0.00027945,2]
[377542413,1754436647597,-460.0,0.00027945,2]
[377542414,1754436647607,-2152.56,0.00027945,2]
[377542415,1754436647617,-465.19542519,0.00027945,2]
[377542416,1754436647628,-173.587474,0.00027945,7]
[377542417,1754436647638,-173.587474,0.00027945,7]
[377542418,1754436647647,-460.0,0.00027945,2]
[377542419,1754436647657,-460.0,0.00027945,2]
[377542420,1754436647667,-460.0,0.00027945,2]
[377542421,1754436647676,-361.300716,0.00027945,7]
[377542422,1754436647687,-569.2,0.00027945,2]
[377542423,1754436647697,-460.0,0.00027945,2]
[377542424,1754436647707,-361.300716,0.00027945,7]
[377542425,1754436647718,-460.0,0.00027945,2]
[377542426,1754436647728,-460.0,0.00027945,2]
[377542427,1754436647740,-460.0,0.00027945,2]
[377542428,1754436647749,-151.0,0.00027945,7]
[377542429,1754436647760,-460.0,0.00027945,2]
[377542430,1754436647771,-460.0,0.00027945,2]
[377542431,1754436647781,-460.0,0.00027945,2]
[377542432,1754436647792,-460.0,0.00027945,2]
[377542433,1754436647804,-460.0,0.00027945,2]
[377542434,1754436647814,-460.0,0.00027945,2]
[377542435,1754436647824,-151.0,0.00027945,7]
[377542436,1754436647833,-476.81,0.00027945,2]
[377542437,1754436647843,-1075.22,0.00027945,2]
[377542438,1754436647854,-208.38750257,0.00027945,2]
[377542439,1754436647863,-433.916028,0.00027945,7]
[377542440,1754436647874,-964.554338,0.00027945,7]
[377542441,1754436647885,-964.554338,0.00027945,7]
[377542442,1754436647895,-907.63,0.00027945,2]
[377542443,1754436647907,-433.916028,0.00027945,7]
[377542444,1754436647918,-964.554338,0.00027945,7]
[377542445,1754436647928,-964.554338,0.00027945,7]
[377542446,1754436647939,-151.0,0.00027945,7]
[377542447,1754436647949,-460.0,0.00027945,2]
[377542448,1754436647959,-460.0,0.00027945,2]
[377542449,1754436647969,-292.939399,0.00027945,7]
[377542450,1754436647980,-460.0,0.00027945,2]
[377542451,1754436647990,-460.0,0.00027945,2]
[377542452,1754436648000,-460.0,0.00027945,2]
[377542453,1754436648010,-151.0,0.00027945,7]
[377542454,1754436648019,-151.0,0.00027945,7]
[377542455,1754436648029,-460.0,0.00027945,2]
[377542456,1754436648038,-151.0,0.00027945,7]
[377542457,1754436648048,-210.64970632,0.00027945,2]
[377542458,1754436648058,-460.0,0.00027945,2]
[377542459,1754436648067,-460.0,0.00027945,2]
[377542460,1754436648077,-460.0,0.00027945,2]
[377542461,1754436648087,-1547.5,0.00027945,2]
[377542462,1754436648096,-460.0,0.00027945,2]
[377542463,1754436648106,-460.0,0.00027945,2]
[377542464,1754436648116,-151.0,0.00027945,7]
[377542465,1754436648125,-564.52,0.00027945,2]
[377542466,1754436648136,-175.0,0.00027945,7]
[377542467,1754436648146,-384.79784766,0.00027945,2]
[377542468,1754436648155,-460.0,0.00027945,2]
[377542469,1754436648164,-175.0,0.00027945,7]
[377542470,1754436648174,-460.0,0.00027945,2]
[377542471,1754436648183,-460.0,0.00027945,2]
[377542472,1754436648193,-1712.627473,0.00027945,7]
[377542473,1754436648203,-563.4,0.00027945,2]
[377542474,1754436648212,-1712.627473,0.00027945,7]
[377542475,1754436648222,-460.0,0.00027945,2]
[377542476,1754436648231,-460.0,0.00027945,2]
[377542477,1754436648241,-460.0,0.00027945,2]
[377542478,1754436648250,-192.35853,0.00027945,7]
[377542479,1754436648259,-251.78174881,0.00027945,2]
[377542480,1754436648269,-460.0,0.00027945,2]
[377542481,1754436648278,-1306.2,0.00027945,2]
[377542482,1754436648287,-1691.68,0.00027945,2]
[377542483,1754436648297,-460.0,0.00027945,2]
[377542484,1754436648308,-460.0,0.00027945,2]
[377542485,1754436648317,-826.3,0.00027945,2]
[377542486,1754436648327,-468.22517412,0.00027945,2]
[377542487,1754436648336,-677.27,0.00027945,2]
[377542488,1754436648346,-151.0,0.00027945,7]
[377542489,1754436648355,-151.0,0.00027945,7]
[377542490,1754436648365,-59570.18,0.00027945,2]
[377542491,1754436648374,-304.429344,0.00027945,7]
[377542492,1754436648384,-304.429344,0.00027945,7]
[377542493,1754436648393,-460.0,0.00027945,2]
[377542494,1754436648403,-460.0,0.00027945,2]
[377542495,1754436648412,-304.429344,0.00027945,7]
[377542496,1754436648421,-304.429344,0.00027945,7]
[377542497,1754436648431,-460.0,0.00027945,2]
[377542498,1754436648440,-761.86,0.00027945,2]
[377542499,1754436648451,-605.68,0.00027945,2]
[377542500,1754436648460,-460.0,0.00027945,2]
[377542501,1754436648470,-189.96150134,0.00027945,2]
[377542502,1754436648479,-962.39,0.00027945,2]
[377542503,1754436648489,-922.29,0.00027945,2]
[377542504,1754436648498,-1420.8,0.00027945,2]
[377542505,1754436648508,-460.0,0.00027945,2]
[377542506,1754436648518,-151.0,0.00027945,7]
[377542507,1754436648527,-470.68753946,0.00027945,2]
[377542508,1754436648537,-151.0,0.00027945,7]
[377542509,1754436648549,-1191.06,0.00027945,2]
[377542510,1754436648559,-460.0,0.00027945,2]
[377542511,1754436648569,-460.0,0.00027945,2]
[377542512,1754436648578,-460.0,0.00027945,2]
[377542513,1754436648588,-460.0,0.00027945,2]
[377542514,1754436648599,-536.26,0.00027945,2]
[377542515,1754436648608,-460.0,0.00027945,2]
[377542516,1754436648618,-867.09,0.00027945,2]
[377542517,1754436648628,-464.06820011,0.00027945,2]
[377542518,1754436648638,-460.0,0.00027945,2]
[377542519,1754436648647,-804.82,0.00027945,2]
[377542520,1754436648656,-460.0,0.00027945,2]
[377542521,1754436648666,-460.0,0.00027945,2]
[377542522,1754436648676,-532.99793358,0.00027945,2]
[377542523,1754436648686,-460.0,0.00027945,2]
[377542524,1754436648695,-1089.48,0.00027945,2]
[377542525,1754436648704,-460.0,0.00027945,2]
[377542526,1754436648713,-271.17445607,0.00027945,2]
[377542527,1754436648723,-468.93676414,0.00027945,2]
[377542528,1754436648733,-460.0,0.00027945,2]
[377542529,1754436648742,-460.0,0.00027945,2]
[377542530,1754436648752,-460.0,0.00027945,2]
[377542531,1754436648762,-1036.93,0.00027945,2]
[377542532,1754436648771,-460.0,0.00027945,2]
[377542533,1754436648780,-1058.98,0.00027945,2]
[377542534,1754436648790,-733.42,0.00027945,2]
[377542535,1754436648799,-2004.77,0.00027945,2]
[377542536,1754436648809,-460.0,0.00027945,2]
[377542537,1754436648818,-820.33,0.00027945,2]
[377542538,1754436648828,-196.173257,0.00027945,7]
[377542539,1754436648837,-196.173257,0.00027945,7]
[377542540,1754436648848,-460.0,0.00027945,2]
[377542541,1754436648858,-5503.37,0.00027945,2]
[377542542,1754436648868,-196.173257,0.00027945,7]
[377542543,1754436648877,-196.173257,0.00027945,7]
[377542544,1754436648887,-460.0,0.00027945,2]
[377542545,1754436648896,-676.39,0.00027945,2]
[377542546,1754436648906,-460.0,0.00027945,2]
[377542547,1754436648915,-482.917969,0.00027945,7]
[377542548,1754436648924,-460.0,0.00027945,2]
[377542549,1754436648934,-482.917969,0.00027945,7]
[377542550,1754436648943,-404.465137,0.00027945,7]
[377542551,1754436648954,-304.206725,0.00027945,7]
[377542552,1754436648963,-304.206725,0.00027945,7]
[377542553,1754436648973,-404.465137,0.00027945,7]
[377542554,1754436648983,-460.0,0.00027945,2]
[377542555,1754436648992,-460.0,0.00027945,2]
[377542556,1754436649002,-460.0,0.00027945,2]
[377542557,1754436649011,-404.465137,0.00027945,7]
[377542558,1754436649021,-520.81580791,0.00027945,2]
[377542559,1754436649030,-304.206725,0.00027945,7]
[377542560,1754436649040,-404.465137,0.00027945,7]
[377542561,1754436649049,-304.206725,0.00027945,7]
[377542562,1754436649059,-181.88151,0.00027945,7]
[377542563,1754436649069,-460.0,0.00027945,2]
[377542564,1754436649079,-181.88151,0.00027945,7]
[377542565,1754436649089,-181.88151,0.00027945,7]
[377542566,1754436649235,-181.88151,0.00027945,7]
[377542567,1754436649245,-1248.44,0.00027945,2]
[377542568,1754436649255,-1892.67,0.00027945,2]
[377542569,1754436649265,-557.75,0.00027945,2]
[377542570,1754436649275,-384.636994,0.00027945,7]
[377542571,1754436649284,-384.636994,0.00027945,7]
[377542572,1754436649294,-587.05,0.00027945,2]
[377542573,1754436649303,-185.29827,0.00027945,7]
[377542574,1754436649313,-185.29827,0.00027945,7]
[377542575,1754436649323,-384.636994,0.00027945,7]
[377542576,1754436649332,-384.636994,0.00027945,7]
[377542577,1754436649342,-185.29827,0.00027945,7]
[377542578,1754436649351,-460.0,0.00027945,2]
[377542579,1754436649360,-185.29827,0.00027945,7]
[377542580,1754436649369,-460.0,0.00027945,2]
[377542581,1754436649378,-460.0,0.00027945,2]
[377542582,1754436649388,-156.226848,0.00027945,7]
[377542583,1754436649398,-460.0,0.00027945,2]
[377542584,1754436649407,-460.0,0.00027945,2]
[377542585,1754436649417,-460.0,0.00027945,2]
[377542586,1754436649426,-522.69,0.00027945,2]
[377542587,1754436649436,-628.39,0.00027945,2]
[377542588,1754436649445,-460.0,0.00027945,2]
[377542589,1754436649455,-748.86,0.00027945,2]
[377542590,1754436649464,-749.87,0.00027945,2]
[377542591,1754436649474,-1365.52,0.00027945,2]
[377542592,1754436649484,-497.333361,0.00027945,7]
[377542593,1754436649493,-497.333361,0.00027945,7]
[377542594,1754436649503,-460.0,0.00027945,2]
[377542595,1754436649512,-4732.54,0.00027945,2]
[377542596,1754436649522,-1141.38,0.00027945,2]
[377542597,1754436649532,-497.333361,0.00027945,7]
[377542598,1754436649542,-497.333361,0.00027945,7]
[377542599,1754436649554,-1349.69,0.00027945,2]
[377542600,1754436649564,-1420.76,0.00027945,2]
[377542601,1754436649574,-151.0,0.00027945,7]
[377542602,1754436649584,-152.354532,0.00027945,7]
[377542603,1754436649595,-460.0,0.00027945,2]
[377542604,1754436649604,-1273.77,0.00027945,2]
[377542605,1754436649613,-465.94527768,0.00027945,2]
[377542606,1754436649623,-3973.05,0.00027945,2]
[377542607,1754436649633,-419.700864,0.00027945,7]
[377542608,1754436649642,-1013.54,0.00027945,2]
[377542609,1754436649652,-419.700864,0.00027945,7]
[377542610,1754436649662,-419.700864,0.00027945,7]
[377542611,1754436649671,-419.700864,0.00027945,7]
[377542612,1754436649681,-460.0,0.00027945,2]
[377542613,1754436649690,-460.0,0.00027945,2]
[377542614,1754436649699,-842.25606042,0.00027945,7]
[377542615,1754436649708,-460.0,0.00027945,2]
[377542616,1754436649718,-323.34260802,0.00027945,2]
[377542617,1754436649727,-461.15695721,0.00027945,7]
[377542618,1754436649736,-151.0,0.00027945,7]
[377542619,1754436649746,-460.0,0.00027945,2]
[377542620,1754436649757,-460.0,0.00027945,2]
[377542621,1754436649767,-2267.96,0.00027945,2]
[377542622,1754436649776,-1391.07,0.00027945,2]
[377542623,1754436649786,-1420.39,0.00027945,2]
[377542624,1754436649796,-152.621314,0.00027945,7]
[377542625,1754436649805,-460.0,0.00027945,2]
[377542626,1754436649816,-460.0,0.00027945,2]
[377542627,1754436649825,-460.0,0.00027945,2]
[377542628,1754436649835,-935.21,0.00027945,2]
[377542629,1754436649845,-151.0,0.00027945,7]
[377542630,1754436649854,-151.0,0.00027945,7]
[377542631,1754436649864,-460.0,0.00027945,2]
[377542632,1754436649874,-460.0,0.00027945,2]
[377542633,1754436649884,-231.72586818,0.00027945,7]
[377542634,1754436649894,-2264.10087164,0.00027957,2]
[377542635,1754436649905,-151.0,0.00027957,7]
[377542636,1754436649915,-151.0,0.00027957,7]
[377542637,1754436649925,-151.0,0.00027957,7]
[377542638,1754436649935,-500.0,0.00027973,5]
[377542639,1754436649945,-150.0,0.00027973,3]
[377542640,1754436649955,-1430.02019968,0.0002799,2]
[377542641,1754436649965,-216.4206905,0.00028,3]
[377542642,1754436649975,-312.16666667,0.00028,3]
[377542643,1754436649985,-552.31596102,0.00028,2]
[377542644,1754436649994,-397.43048237,0.00028,2]
[377542645,1754436650004,-2347.87260389,0.00028012,2]
[377542646,1754436650013,-151.0,0.00028012,7]
[377542647,1754436650022,-175.0,0.00028012,7]
[377542648,1754436650031,-175.0,0.00028012,7]
[377542649,1754436650040,-1712.627473,0.00028012,7]
[377542650,1754436650050,-1712.627473,0.00028012,7]
[377542651,1754436650060,-312.16666667,0.00028012,7]
[377542652,1754436650069,-216.4206905,0.00028012,7]
[377542653,1754436650079,-482.917969,0.00028012,7]
[377542654,1754436650089,-482.917969,0.00028012,7]
[377542655,1754436650099,-2434.74389024,0.00028067,2]
[377542656,1754436650108,-2524.82941417,0.00028122,2]
[377542657,1754436650118,-160.0,0.00028176,2]
[377542658,1754436650127,-215.21874788,0.00028176,2]
[377542660,1754436650137,-231.72586818,0.00028176,2]
[377542661,1754436650148,-160.0,0.00028176,2]
[377542662,1754436650157,-160.0,0.00028176,2]
[377542663,1754436650167,-160.0,0.00028176,2]
[377542664,1754436650176,-2618.2481025,0.00028177,2]
[377542665,1754436650186,-312.16666667,0.00028178,2]
[377542666,1754436650195,-527.3554621,0.00028178,2]
[377542667,1754436650206,-160.0,0.00028178,2]
[377542668,1754436650216,-12655.02535889,0.00028178,2]
[377542669,1754436650226,-461.15695721,0.00028178,2]
[377542670,1754436650236,-160.0,0.00028178,2]
[377542671,1754436650246,-160.0,0.00028178,2]
[377542672,1754436650256,-216.4206905,0.00028178,2]
[377542673,1754436650266,-160.0,0.00028178,2]
[377542674,1754436650275,-160.0,0.00028178,2]
[377542675,1754436650284,-842.25606042,0.00028178,2]
[377542676,1754436650294,-151.0,0.00028188,7]
[377542677,1754436650303,-151.0,0.00028188,7]
[377542678,1754436650313,-151.0,0.00028188,7]
[377542679,1754436650322,-151.0,0.00028188,7]
[377542680,1754436650331,-151.0,0.00028188,7]
[377542681,1754436650340,-151.0,0.00028188,7]
[377542682,1754436650350,-185.103777,0.00028188,7]
[377542683,1754436650359,-282.844152,0.00028188,7]
[377542684,1754436650368,-282.844152,0.00028188,7]
[377542685,1754436650378,-156.51082,0.00028188,7]
[377542686,1754436650388,-156.51082,0.00028188,7]
[377542687,1754436650397,-433.916028,0.00028188,7]
[377542688,1754436650406,-433.916028,0.00028188,7]
[377542689,1754436650422,-151.0,0.00028188,7]
[377542690,1754436650432,-157.340175,0.00028188,7]
[377542691,1754436650441,-151.0,0.00028219,7]